bitfinex/quotes_BTCUSD_20260215
["timestamp","ask_amount","ask_price","bid_price","bid_amount"]
[1771176004173,0.0001371,68991.0,68980.0,0.63107064]
[1771176004408,0.0543834,68995.0,68980.0,0.63107064]
[1771176004649,0.03154471,68995.0,68980.0,0.63107064]
[1771176004855,0.02283869,68994.0,68980.0,0.63107064]
[1771176005058,0.02283869,68994.0,68981.0,0.07248308]
[1771176005188,0.02283869,68994.0,68980.0,0.70355519]
[1771176007741,0.02283869,68994.0,68980.0,0.63107064]
[1771176008528,0.02283869,68994.0,68980.0,0.70355541]
[1771176008727,0.02323869,69000.0,68982.0,0.09028252]
[1771176008938,0.02323869,69000.0,68983.0,0.01780003]
[1771176009743,0.02323869,69000.0,68984.0,0.01780003]
[1771176010108,0.02303817,68999.0,68983.0,0.34704]
[1771176010313,0.02283869,68992.0,68983.0,0.34704]
[1771176010532,0.02283869,68991.0,68983.0,0.34704]
[1771176011535,0.00749495,68991.0,68983.0,0.34704]
[1771176012204,0.03910256,68991.0,68983.0,0.34704]
[1771176013032,0.03160761,68991.0,68983.0,0.34704]
[1771176013256,0.03160761,68990.0,68983.0,0.34704]
[1771176013440,0.02349295,68989.0,68983.0,0.34704]
[1771176014302,0.02349295,68989.0,68980.0,0.0002]
[1771176015769,0.05839708,68989.0,68980.0,0.0002]
[1771176019312,0.02538611,68989.0,68980.0,0.0002]
[1771176022159,0.05839708,68987.0,68980.0,0.0002]
[1771176023275,0.0004,68994.0,68975.0,0.0002]
[1771176023276,0.63107064,68990.0,68975.0,0.0002]
[1771176023668,0.02349295,68988.0,68975.0,0.0002]
[1771176023866,0.02349295,68987.0,68975.0,0.0002]
[1771176024858,0.03490413,68988.0,68975.0,0.0002]
[1771176027714,0.03490413,68988.0,68970.0,0.72185499]
[1771176027929,0.03490413,68988.0,68970.0,0.70770002]
[1771176029397,0.03490413,68988.0,68971.0,0.07662938]
[1771176034311,0.66597477,68990.0,68971.0,0.07662938]
[1771176034547,0.63107064,68990.0,68972.0,0.03495528]
[1771176034785,0.2928,68992.0,68973.0,0.07662938]
[1771176035125,0.63107064,68990.0,68973.0,0.07662938]
[1771176036547,0.0004,68989.0,68973.0,0.07662938]
[1771176037132,0.0004,68989.0,68974.0,0.03495528]
[1771176037379,0.0004,68989.0,68975.0,0.07662938]
[1771176038590,0.2922,68992.0,68975.0,0.07662938]
[1771176039016,0.63107064,68990.0,68975.0,0.07662938]
[1771176040967,0.0004,68994.0,68975.0,0.07662938]
[1771176041175,0.0004,68994.0,68966.0,0.28999659]
[1771176041176,0.0004,68994.0,68982.0,0.07662938]
[1771176041380,0.0004,68994.0,68987.0,0.07662938]
[1771176042337,0.0004,69003.0,68987.0,0.07662938]
[1771176042338,0.0004,69007.0,68987.0,0.34708]
[1771176042534,0.0004,69007.0,68997.0,0.06586877]
[1771176042758,0.0004,69007.0,68999.0,0.07124907]
[1771176045514,0.0004,69007.0,68999.0,0.07110232]
[1771176046648,0.0004,69011.0,68999.0,0.10393272]
[1771176046842,0.0004,69006.0,69000.0,0.07110232]
[1771176048933,0.0004,69006.0,68991.0,0.07110232]
[1771176049553,0.0004,69006.0,68997.0,0.03297715]
[1771176049802,0.0004,69011.0,68996.0,0.63107064]
[1771176049803,0.0004,69011.0,68999.0,0.07246481]
[1771176050006,0.0004,69011.0,69002.0,0.07110232]
[1771176050227,0.0004,69011.0,69003.0,0.07110232]
[1771176050430,0.0004,69011.0,69006.0,0.07110232]
[1771176051247,0.09284,69024.0,69001.0,0.63107064]
[1771176051248,0.29332,69022.0,69012.0,0.07245113]
[1771176051446,0.000177,69029.0,69010.0,0.10407947]
[1771176051651,0.000177,69029.0,69010.0,0.07245242]
[1771176052072,0.000177,69029.0,69012.0,0.03297715]
[1771176052285,0.000177,69029.0,69005.0,0.28983123]
[1771176052286,0.000177,69029.0,69019.0,0.70217296]
[1771176052452,0.00060851,69029.0,69019.0,0.07110232]
[1771176053481,0.00060851,69029.0,69019.0,0.70217296]
[1771176053894,0.00060851,69029.0,69019.0,0.07110232]
[1771176054055,0.0004,69020.0,69019.0,0.07110232]
[1771176054256,0.00060851,69029.0,69015.0,0.07110232]
[1771176054499,0.00060851,69029.0,69019.0,0.63107064]
[1771176054718,0.00060851,69029.0,69020.0,0.07110232]
[1771176054858,0.000177,69039.0,69019.0,0.62107064]
[1771176055065,0.000177,69039.0,69021.0,0.07110232]
[1771176055342,0.63107064,69030.0,69019.0,0.00043151]
[1771176055515,0.66487553,69030.0,69019.0,0.00043151]
[1771176055735,0.03380489,69029.0,69019.0,0.00043151]
[1771176056334,0.03325689,69029.0,69019.0,0.00043151]
[1771176056556,0.03325689,69029.0,69014.0,0.07110232]
[1771176056765,0.0336884,69029.0,69014.0,0.07110232]
[1771176057741,0.00043151,69029.0,69014.0,0.07110232]
[1771176058817,0.00043151,69029.0,69014.0,0.07095556]
[1771176059946,0.0342364,69029.0,69014.0,0.07095556]
[1771176060373,0.03380489,69023.0,69009.0,0.0002925]
[1771176060600,0.63107064,69020.0,69009.0,0.0002925]
[1771176061316,0.03380489,69019.0,69014.0,0.0002]
[1771176061506,0.09323151,69029.0,69001.0,0.07102894]
[1771176061791,0.09323151,69029.0,68997.0,0.4401475]
[1771176061792,0.03380489,69019.0,69007.0,0.0002]
[1771176061993,0.03380489,69019.0,68997.0,0.4401475]
[1771176062173,0.03380489,69019.0,68997.0,0.51117644]
[1771176062370,0.03380489,69019.0,69000.0,0.0002]
[1771176062754,0.03380489,69019.0,69000.0,0.63103116]
[1771176062952,0.03380489,69019.0,69000.0,0.0002]
[1771176063181,0.63083116,69020.0,69000.0,0.0002]
[1771176063182,0.03380489,69009.0,69000.0,0.0002]
[1771176063568,0.32680489,69009.0,69000.0,0.0002]
[1771176065003,0.293,69009.0,69000.0,0.0002]
[1771176067643,0.03380489,69008.0,69000.0,0.0002]
[1771176068751,0.03423613,69008.0,69000.0,0.0002]
[1771176070191,0.03423613,69008.0,68993.0,0.0002]
[1771176070997,0.03423613,69008.0,68994.0,0.03551447]
[1771176070998,0.00043124,69008.0,68994.0,0.03551447]
[1771176071209,0.29368,69007.0,68994.0,0.03551447]
[1771176071411,0.29368,69007.0,68999.0,0.03551447]
[1771176071622,0.29407124,69008.0,68999.0,0.03551447]
[1771176071833,0.13825064,69008.0,69001.0,0.03551447]
[1771176072033,0.13825064,69008.0,69001.0,0.03493539]
[1771176072880,0.2936,69016.0,69001.0,0.03493539]
[1771176073093,0.2936,69016.0,69001.0,0.03536663]
[1771176076286,0.294,69016.0,69001.0,0.03536663]
[1771176077239,0.29436,69016.0,69001.0,0.03536663]
[1771176077820,0.3307155,69016.0,69001.0,0.03536663]
[1771176078219,0.29436,69016.0,69001.0,0.03536663]
[1771176078603,0.0004,69016.0,69001.0,0.03406017]
[1771176078832,0.14348,69016.0,69003.0,0.03522493]
[1771176079005,0.14348,69016.0,69004.0,0.03522493]
[1771176079415,0.14348,69016.0,69007.0,0.03522493]
[1771176080043,0.0004,69016.0,69007.0,0.03522493]
[1771176083993,0.0004,69016.0,69001.0,0.00043124]
[1771176084197,0.0363555,69015.0,69001.0,0.00043124]
[1771176085078,0.0363555,69015.0,69001.0,0.03565617]
[1771176085592,0.0004,69016.0,69001.0,0.00043124]
[1771176085593,0.0363555,69010.0,69001.0,0.00043124]
[1771176086013,0.0363555,69010.0,68996.0,0.03522493]
[1771176086225,0.03678674,69010.0,68996.0,0.03522493]
[1771176090927,0.03678674,69010.0,68993.0,0.0002]
[1771176091612,0.03678674,69010.0,68993.0,0.03542493]
[1771176091866,0.01477505,69002.0,68986.0,0.0002]
[1771176092109,0.0363555,68999.0,68986.0,0.0002]
[1771176092335,0.00043124,69010.0,68986.0,0.0002]
[1771176092336,0.23896,68998.0,68991.0,0.02396429]
[1771176092558,0.11436,68998.0,68991.0,0.02396429]
[1771176093017,0.11386,68998.0,68991.0,0.02396429]
[1771176093595,0.6312624,69010.0,68991.0,0.02396429]
[1771176093824,0.29404,69001.0,68991.0,0.02396429]
[1771176095148,0.01520629,69010.0,68991.0,0.02396429]
[1771176095419,0.00043124,69010.0,69000.0,0.63083116]
[1771176095827,0.00043124,69010.0,69001.0,0.02396429]
[1771176100284,0.0363555,69009.0,68992.0,0.02396429]
[1771176100992,0.00043124,69010.0,68992.0,0.02396429]
[1771176101815,0.03678674,69010.0,68992.0,0.02396429]
[1771176103813,0.00043124,69010.0,68992.0,0.02396429]
[1771176104007,0.00043124,69010.0,68994.0,0.02481393]
[1771176105447,0.01477505,69009.0,68994.0,0.02481393]
[1771176105646,0.03570809,69008.0,68994.0,0.02481393]
[1771176105857,0.33034809,69007.0,68994.0,0.02481393]
[1771176109874,0.29464,69007.0,68994.0,0.02481393]
[1771176111879,0.00043124,69010.0,68997.0,0.63083116]
[1771176112077,0.00043124,69010.0,69001.0,0.03258614]
[1771176112290,0.00043124,69010.0,69002.0,0.02481393]
[1771176112940,0.29564,69016.0,69002.0,0.05740007]
[1771176113167,0.29564,69016.0,69003.0,0.02481393]
[1771176114882,0.0004,69016.0,69006.0,0.63083116]
[1771176115092,0.2954,69024.0,69010.0,0.02481393]
[1771176115299,0.2954,69024.0,69012.0,0.03258614]
[1771176115471,0.2954,69024.0,69013.0,0.02481393]
[1771176117336,0.0005859,69023.0,69013.0,0.02481393]
[1771176120343,0.0005859,69023.0,69015.0,0.02481393]
[1771176120963,0.0002077,69031.0,69019.0,0.07244349]
[1771176121350,0.0002077,69031.0,69021.0,0.03258614]
[1771176121498,0.0002077,69031.0,69022.0,0.02481393]
[1771176128266,0.0004,69038.0,69024.0,0.03258614]
[1771176128503,0.0004,69038.0,69026.0,0.63026162]
[1771176128726,0.0004,69038.0,69027.0,0.02481393]
[1771176130623,0.0004,69038.0,69017.0,0.03258614]
[1771176130810,0.0004,69038.0,69021.0,0.02481393]
[1771176133963,0.0004,69038.0,69021.0,0.02626272]
[1771176134188,0.03617179,69038.0,69021.0,0.02626272]
[1771176135513,0.03617179,69038.0,69022.0,0.09524119]
[1771176135707,0.03617179,69038.0,69024.0,0.02280116]
[1771176136118,0.03617179,69038.0,69026.0,0.63026162]
[1771176136344,0.03617179,69038.0,69026.0,0.65306278]
[1771176137549,0.03617179,69038.0,69026.0,0.02280116]
[1771176138572,0.01477505,69034.0,69013.0,0.02280116]
[1771176138787,0.63066162,69036.0,69013.0,0.02293044]
[1771176138788,0.0004,69036.0,69013.0,0.02293044]
[1771176139153,0.05054684,69035.0,69013.0,0.02293044]
[1771176139363,0.0004,69036.0,69020.0,0.63026162]
[1771176139591,0.0004,69036.0,69026.0,0.63026162]
[1771176139931,0.0004,69036.0,69027.0,0.02280116]
[1771176151087,0.0004,69036.0,69020.0,0.63046162]
[1771176151088,0.0004,69036.0,69020.0,0.0002]
[1771176151307,0.03577179,69031.0,69020.0,0.0002]
[1771176151640,0.03577179,69031.0,69020.0,0.63046162]
[1771176152209,0.03577179,69029.0,69013.0,0.00032928]
[1771176152514,0.07282612,69036.0,69013.0,0.00032928]
[1771176152515,0.03577179,69027.0,69013.0,0.00032928]
[1771176153040,0.03577179,69027.0,69017.0,0.63026162]
[1771176154294,0.63026162,69030.0,69013.0,0.00032928]
[1771176155271,0.05054684,69028.0,69013.0,0.00032928]
[1771176155631,0.29252,69029.0,69013.0,0.00032928]
[1771176155836,0.05054684,69028.0,69010.0,0.7133909]
[1771176156061,0.00012934,69028.0,69010.0,0.7133909]
[1771176156259,0.03577179,69025.0,69010.0,0.7133909]
[1771176156831,0.03577179,69024.0,69010.0,0.7133909]
[1771176159023,0.01477505,69021.0,69006.0,0.0002]
[1771176159225,0.01477505,69021.0,69010.0,0.63026162]
[1771176159226,0.03577179,69020.0,69010.0,0.63026162]
[1771176159428,0.03577179,69026.0,69010.0,0.63026162]
[1771176159570,0.03577179,69025.0,69010.0,0.65306278]
[1771176159988,0.03577179,69025.0,69010.0,0.65326278]
[1771176161762,0.03577179,69024.0,69010.0,0.65326278]
[1771176163653,0.03577179,69024.0,69010.0,0.63046162]
[1771176163956,0.03577179,69024.0,69011.0,0.02491047]
[1771176166170,0.03362957,69023.0,69010.0,0.0002]
[1771176166381,0.01477505,69020.0,69010.0,0.63046162]
[1771176166587,0.03362957,69019.0,69010.0,0.63046162]
[1771176168262,0.29328,69022.0,69010.0,0.63046162]
[1771176168675,0.32690957,69022.0,69010.0,0.63046162]
[1771176168887,0.29328,69022.0,69010.0,0.63046162]
[1771176169063,0.29328,69022.0,69010.0,0.0002]
[1771176169064,0.03362957,69021.0,69010.0,0.0002]
[1771176169264,0.01477505,69021.0,69010.0,0.0002]
[1771176169576,0.03362957,69020.0,69010.0,0.63046162]
[1771176172227,0.03362957,69020.0,69010.0,0.0002]
[1771176172448,0.03362957,69020.0,69010.0,0.63046162]
[1771176177734,0.03362957,69020.0,69010.0,0.63054222]
[1771176178360,0.03362957,69019.0,69010.0,0.63054222]
[1771176178757,0.03362957,69019.0,69010.0,0.0002806]
[1771176182027,0.29336,69022.0,69010.0,0.0002806]
[1771176182264,0.01477505,69025.0,69010.0,0.63054222]
[1771176182476,0.00012934,69028.0,69016.0,0.02491047]
[1771176182693,0.08380934,69028.0,69018.0,0.63026162]
[1771176182881,0.08380934,69028.0,69016.0,0.02499107]
[1771176183572,0.00012934,69028.0,69016.0,0.02499107]
[1771176184044,0.00012934,69028.0,69018.0,0.63047326]
[1771176184248,0.00012934,69028.0,69016.0,0.02499107]
[1771176185414,0.00012934,69028.0,69018.0,0.63047326]
[1771176185646,0.00012934,69028.0,69016.0,0.02499107]
[1771176186136,0.00012934,69028.0,69018.0,0.63047326]
[1771176186404,0.00012934,69028.0,69019.0,0.02491047]
[1771176187408,0.00052934,69028.0,69019.0,0.02491047]
[1771176192502,0.0004,69035.0,69022.0,0.02491047]
[1771176192677,0.00048116,69035.0,69026.0,0.02491047]
[1771176196088,0.0004,69037.0,69026.0,0.03381076]
[1771176196408,0.0004,69037.0,69029.0,0.02323749]
[1771176206811,0.0004,69037.0,69026.0,8.116e-05]
[1771176207012,0.0362092,69036.0,69026.0,8.116e-05]
[1771176207217,0.0362092,69034.0,69026.0,8.116e-05]
[1771176207421,0.01477505,69034.0,69020.0,0.63047326]
[1771176207637,8.112e-05,69034.0,69021.0,0.02323749]
[1771176208389,8.112e-05,69034.0,69025.0,0.02323749]
[1771176214117,8.112e-05,69034.0,69025.0,0.02343749]
[1771176214481,0.01477505,69030.0,69018.0,0.0002]
[1771176214602,0.0362092,69029.0,69018.0,0.0002]
[1771176214807,0.0362092,69028.0,69018.0,0.0002]
[1771176215778,0.0362092,69028.0,69018.0,0.63067326]
[1771176216451,8.112e-05,69034.0,69019.0,0.02323749]
[1771176218884,8.112e-05,69034.0,69024.0,0.63047326]
[1771176219089,8.112e-05,69034.0,69022.0,0.02323749]
[1771176219368,8.112e-05,69034.0,69000.0,0.63047326]
[1771176219369,0.0724332,69030.0,69010.0,0.63067326]
[1771176219534,0.01477505,69026.0,69010.0,0.0002]
[1771176219737,0.30963332,69029.0,69010.0,0.0002]
[1771176219738,0.0362092,69023.0,69010.0,0.0002]
[1771176219947,0.0362092,69022.0,69010.0,0.0002]
[1771176222077,0.01477505,69020.0,69010.0,0.0002]
[1771176222430,0.63047326,69021.0,69010.0,0.0002]
[1771176222431,0.0362092,69019.0,69010.0,0.0002]
[1771176222596,0.63047326,69021.0,69004.0,0.02323749]
[1771176222597,0.0362092,69016.0,69004.0,0.02323749]
[1771176223180,0.0362092,69016.0,69003.0,0.0002]
[1771176223382,0.03376584,69015.0,69003.0,0.0002]
[1771176223588,0.01477505,69013.0,69003.0,0.0002]
[1771176223795,0.03678447,69012.0,69003.0,0.0002]
[1771176224824,0.03686555,69012.0,69003.0,0.0002]
[1771176226244,0.03678447,69010.0,68998.0,0.0002]
[1771176226423,0.03678447,69009.0,68998.0,0.0002]
[1771176226601,0.63047326,69010.0,68994.0,0.0002]
[1771176226885,0.03678447,69001.0,68987.0,0.0003767]
[1771176227196,0.28992,69004.0,68990.0,0.63047326]
[1771176227532,0.28992,69004.0,68992.0,0.02366007]
[1771176230220,0.03678447,69011.0,68992.0,0.02366007]
[1771176230418,0.26024,69010.0,68992.0,0.05784689]
[1771176230656,0.26024,69010.0,68993.0,0.02346007]
[1771176231274,8.108e-05,69012.0,69001.0,0.02346007]
[1771176236235,0.00048108,69012.0,69001.0,0.02346007]
[1771176241049,0.00048108,69012.0,69001.0,0.05764689]
[1771176241250,0.00048108,69012.0,69002.0,0.02346007]
[1771176241854,0.00048108,69012.0,69004.0,0.02346007]
[1771176243508,0.0004,69043.0,69012.0,0.00048108]
[1771176243697,0.0004,69043.0,69021.0,0.02346007]
[1771176243698,0.03718447,69042.0,69021.0,0.02346007]
[1771176243857,0.63047326,69040.0,69021.0,0.02346007]
[1771176244540,0.63047326,69040.0,69020.0,1.01182008]
[1771176244541,0.03718447,69042.0,69023.0,0.02346007]
[1771176244892,0.03718447,69042.0,69023.0,0.09589957]
[1771176245096,0.03718447,69042.0,69022.0,0.03418682]
[1771176245283,0.03718447,69042.0,69023.0,0.02346007]
[1771176245710,0.03718447,69042.0,69027.0,0.63047326]
[1771176245880,0.03718447,69042.0,69028.0,0.02346007]
[1771176252682,0.03718447,69042.0,69027.0,0.61412627]
[1771176252926,0.03718447,69042.0,69023.0,0.02346007]
[1771176255504,0.03718447,69042.0,69027.0,0.63026766]
[1771176255708,0.05622914,69036.0,69023.0,0.02346007]
[1771176255947,0.03353027,69035.0,69023.0,0.02346007]
[1771176256786,0.03353027,69035.0,69020.0,0.97742766]
[1771176257014,0.05622914,69035.0,69020.0,0.97742766]
[1771176257975,0.05622914,69035.0,69020.0,1.00178871]
[1771176260455,0.28908,69042.0,69025.0,0.63026766]
[1771176260671,0.05622914,69040.0,69025.0,0.63026766]
[1771176260899,0.0004,69042.0,69030.0,0.02436105]
[1771176261029,0.03353027,69041.0,69022.0,0.07244045]
[1771176261219,0.03353027,69041.0,69023.0,0.02436105]
[1771176261667,0.03353027,69041.0,69027.0,0.63026766]
[1771176262226,0.03353027,69041.0,69023.0,0.02436105]
[1771176263135,0.03353027,69041.0,69023.0,0.02456105]
[1771176264040,0.03353027,69041.0,69027.0,0.63026766]
[1771176266320,0.03353027,69041.0,69023.0,0.02456105]
[1771176266945,0.03353027,69036.0,69023.0,0.02456105]
[1771176268173,0.02269887,69035.0,69023.0,0.0002]
[1771176270917,0.0004,69037.0,69023.0,0.0002]
[1771176270918,0.0004,69037.0,69025.0,0.63026766]
[1771176271140,0.0004,69037.0,69026.0,0.02436105]
[1771176271875,0.0004,69037.0,69025.0,0.66516668]
[1771176272094,0.0004,69037.0,69027.0,0.02436105]
[1771176275945,0.0004,69037.0,69027.0,0.0967962]
[1771176276155,0.0004,69037.0,69028.0,0.02436105]
[1771176282109,0.0004,69037.0,69025.0,0.63046766]
[1771176282110,0.03353027,69036.0,69025.0,0.0002]
[1771176282428,0.05622914,69034.0,69025.0,0.0002]
[1771176286384,0.02347491,69033.0,69025.0,0.0002]
[1771176286557,0.05897933,69033.0,69025.0,0.0002]
[1771176287602,0.0004,69037.0,69025.0,0.0002]
[1771176287778,0.0004,69037.0,69018.0,0.02456105]
[1771176287779,0.03550442,69035.0,69018.0,0.02456105]
[1771176287975,0.02347491,69032.0,69020.0,0.63026766]
[1771176288240,0.02347491,69030.0,69020.0,0.63026766]
[1771176288671,0.05897933,69030.0,69020.0,0.63026766]
[1771176290454,0.63026766,69030.0,69012.0,0.00012934]
[1771176290574,0.05897933,69029.0,69012.0,0.00012934]
[1771176290776,0.63026766,69030.0,69025.0,0.0002]
[1771176291042,0.2848,69032.0,69025.0,0.0002]
[1771176291255,0.05897933,69031.0,69025.0,0.0002]
[1771176291519,0.2848,69032.0,69025.0,0.0002]
[1771176292399,0.2848,69032.0,69012.0,0.00012934]
[1771176292602,0.32090442,69031.0,69012.0,0.00012934]
[1771176292777,0.2854,69031.0,69012.0,0.02337995]
[1771176293178,0.05897933,69030.0,69012.0,0.02337995]
[1771176293384,0.2854,69031.0,69012.0,0.02337995]
[1771176293589,0.05897933,69030.0,69012.0,0.02337995]
[1771176293791,0.2854,69031.0,69012.0,0.02337995]
[1771176294468,0.63026766,69030.0,69012.0,0.02337995]
[1771176295476,0.02347491,69028.0,69012.0,0.02337995]
[1771176295792,0.05897933,69028.0,69012.0,0.02337995]
[1771176297904,0.05897933,69028.0,69012.0,0.02357995]
[1771176299047,0.05897933,69028.0,69012.0,0.02374115]
[1771176304534,0.28612,69029.0,69012.0,0.02374115]
[1771176305249,0.28612,69029.0,69012.0,0.0592413]
[1771176305423,0.0004,69030.0,69020.0,0.02325061]
[1771176306455,0.0004,69030.0,69019.0,0.63026766]
[1771176306827,0.05937933,69030.0,69014.0,0.02341181]
[1771176307031,0.02347491,69029.0,69014.0,0.02341181]
[1771176307275,0.03550442,69027.0,69014.0,0.02341181]
[1771176307499,0.02347491,69026.0,69014.0,0.0001612]
[1771176311669,0.02347491,69026.0,69014.0,0.0003612]
[1771176312454,0.02347491,69026.0,69013.0,0.02325061]
[1771176312455,0.02347491,69026.0,69013.0,0.02317268]
[1771176314870,0.03425812,69025.0,69012.0,0.00032934]
[1771176315038,0.02357737,69024.0,69012.0,0.00032934]
[1771176315239,0.05783549,69023.0,69012.0,0.00032934]
[1771176323766,0.28636,69028.0,69012.0,0.00032934]
[1771176324021,0.05783549,69027.0,69012.0,0.00032934]
[1771176324346,0.05783549,69026.0,69012.0,0.00032934]
[1771176324776,0.03425812,69026.0,69012.0,0.00032934]
[1771176324984,0.02357737,69025.0,69012.0,0.00032934]
[1771176325457,0.0004,69023.0,69012.0,0.00032934]
[1771176329247,0.0004,69023.0,69012.0,0.02301215]
[1771176342185,0.0004,69023.0,69012.0,0.00032934]
[1771176343274,0.63057116,69022.0,69012.0,0.00032934]
[1771176343482,0.63057116,69022.0,69011.0,0.0002]
[1771176343681,0.05754042,69022.0,69011.0,0.0002]
[1771176343899,0.02328466,69021.0,69011.0,0.0002]
[1771176344105,0.0004,69023.0,69011.0,0.0002]
[1771176344106,0.05754042,69020.0,69011.0,0.0002]
[1771176355237,0.02328466,69020.0,69011.0,0.0002]
[1771176362531,0.05754042,69020.0,69011.0,0.0002]
[1771176364863,0.05794042,69020.0,69011.0,0.0002]
[1771176368194,0.0004,69020.0,69004.0,0.0002]
[1771176368417,0.63070746,69015.0,69000.0,0.0002]
[1771176368634,0.63070746,69010.0,69000.0,0.0002]
[1771176368802,0.03425576,69009.0,68990.0,0.63083146]
[1771176369005,0.03425576,69007.0,68990.0,0.63083146]
[1771176369150,0.63070746,69010.0,68990.0,0.000124]
[1771176369151,0.03425576,69004.0,68990.0,0.000124]
[1771176369355,0.02328466,69003.0,68990.0,0.000124]
[1771176369805,0.02328466,69002.0,68990.0,0.000124]
[1771176373326,0.02328466,69002.0,68990.0,0.63083146]
[1771176373536,0.31176422,69006.0,68990.0,0.63083146]
[1771176373942,0.02452422,69005.0,68990.0,0.63083146]
[1771176374963,0.32023836,69006.0,68990.0,0.000124]
[1771176374964,0.02452422,69003.0,68990.0,0.000124]
[1771176375190,0.28724,69006.0,68987.0,0.0002]
[1771176375191,0.03299836,69000.0,68987.0,0.0002]
[1771176375413,0.03299836,69000.0,68977.0,0.000124]
[1771176375414,0.03299836,68994.0,68977.0,0.000124]
[1771176375614,0.34532258,68993.0,68980.0,0.63070746]
[1771176376219,0.02452422,68992.0,68977.0,0.0247804]
[1771176376623,0.02452422,68992.0,68985.0,0.0002]
[1771176381263,0.2878,68993.0,68985.0,0.0002]
[1771176382905,0.02452422,68992.0,68985.0,0.0002]
[1771176385559,0.03299836,68992.0,68985.0,0.0002]
[1771176385745,0.02452422,68991.0,68985.0,0.0002]
[1771176385903,0.02452422,68991.0,68983.0,0.00055524]
[1771176386108,0.02452422,68991.0,68978.0,0.0002]
[1771176386352,0.65523168,68990.0,68978.0,0.0002]
[1771176386552,0.68823004,68990.0,68978.0,0.0002]
[1771176387733,0.68823004,68990.0,68971.0,0.0002]
[1771176387734,0.04304719,68989.0,68971.0,0.0002]
[1771176387943,0.04304719,68989.0,68963.0,0.0001038]
[1771176387944,1.26141492,68981.0,68963.0,0.0001038]
[1771176388134,0.03299836,68972.0,68963.0,0.0001038]
[1771176388416,0.03299836,68989.0,68965.0,0.03162776]
[1771176388672,0.38256,68988.0,68970.0,0.0246564]
[1771176388841,0.03299836,68987.0,68970.0,0.65536386]
[1771176389042,0.03299836,68987.0,68970.0,0.0246564]
[1771176389243,0.28984,68986.0,68970.0,0.0246564]
[1771176389454,0.03299836,68985.0,68970.0,0.0246564]
[1771176389789,0.03299836,68985.0,68964.0,0.0246564]
[1771176390355,0.28984,68986.0,68964.0,0.0246564]
[1771176390356,0.63070746,68980.0,68964.0,0.0246564]
[1771176390605,0.63070746,68980.0,68970.0,0.0002]
[1771176390995,0.03299836,68983.0,68970.0,0.0002]
[1771176391196,0.02452422,68982.0,68970.0,0.0002]
[1771176391911,0.02452422,68982.0,68970.0,0.63090746]
[1771176392318,0.02452422,68982.0,68970.0,0.0002]
[1771176394198,0.02452422,68982.0,68970.0,0.63090746]
[1771176395157,0.29036,68981.0,68970.0,0.63090746]
[1771176395306,0.29036,68980.0,68970.0,0.63090746]
[1771176395494,0.02452422,68982.0,68970.0,0.63090746]
[1771176395935,0.29036,68981.0,68970.0,0.63090746]
[1771176396639,0.02452422,68994.0,68970.0,0.63090746]
[1771176396837,0.63070746,68990.0,68973.0,0.0246564]
[1771176397040,0.02452422,68990.0,68973.0,0.0246564]
[1771176397240,0.2904,68992.0,68973.0,0.0246564]
[1771176397644,0.02452422,68989.0,68973.0,0.0246564]
[1771176398047,0.02452422,68990.0,68979.0,0.63070746]
[1771176398250,0.23048,68988.0,68979.0,0.63070746]
[1771176399542,0.25500422,68988.0,68974.0,0.03162776]
[1771176399934,0.02452422,68987.0,68974.0,0.03162776]
[1771176400328,0.2902,68987.0,68978.0,0.03162776]
[1771176400532,0.2902,68987.0,68980.0,0.03162776]
[1771176400732,4.309e-05,68991.0,68981.0,0.03162776]
[1771176400935,4.309e-05,68991.0,68982.0,0.03162776]
[1771176401922,0.0006086,68993.0,68984.0,0.0246564]
[1771176402123,0.0006086,68993.0,68985.0,0.03162776]
[1771176404375,0.0006086,68993.0,68984.0,6.238e-05]
[1771176404609,0.0233683,68992.0,68984.0,6.238e-05]
[1771176405905,0.0237683,68992.0,68984.0,6.238e-05]
[1771176409379,0.0237683,68992.0,68976.0,0.02489164]
[1771176409565,0.0237683,68992.0,68976.0,4.309e-05]
[1771176409711,0.0233683,68988.0,68976.0,4.309e-05]
[1771176409925,0.10281674,68987.0,68973.0,0.0002]
[1771176410145,0.07247888,68986.0,68973.0,0.0002]
[1771176410351,0.0233683,68984.0,68973.0,0.0002]
[1771176410540,0.0233683,68982.0,68973.0,0.0002]
[1771176411391,0.0233683,68982.0,68970.0,0.0002]
[1771176411590,0.0233683,68982.0,68970.0,0.00032944]
[1771176411792,0.0233683,68979.0,68970.0,0.00032944]
[1771176412515,0.0233683,68984.0,68971.0,0.0316423]
[1771176412718,0.291,68978.0,68971.0,0.0316423]
[1771176413992,0.0233683,68984.0,68972.0,0.02489164]
[1771176414196,0.3143283,68984.0,68972.0,0.05653394]
[1771176414414,0.0233683,68984.0,68972.0,0.05653394]
[1771176414797,0.0233683,68984.0,68972.0,0.02489164]
[1771176420796,0.0233683,68984.0,68970.0,0.6310369]
[1771176420983,0.0233683,68984.0,68970.0,0.68757084]
[1771176421206,0.0233683,68984.0,68970.0,0.65592854]
[1771176421372,0.0233683,68984.0,68971.0,0.0316423]
[1771176421740,0.0233683,68984.0,68970.0,0.65592854]
[1771176421741,0.29096,68985.0,68972.0,0.05653394]
[1771176422704,0.29096,68985.0,68972.0,0.02489164]
[1771176422931,0.15567594,68984.0,68970.0,0.00032944]
[1771176423220,0.15567594,68984.0,68970.0,0.03197174]
[1771176424382,0.15567594,68984.0,68970.0,0.6310369]
[1771176424588,0.15567594,68984.0,68971.0,0.0316423]
[1771176426072,0.29096,68985.0,68971.0,0.0316423]
[1771176426253,0.15567594,68990.0,68975.0,0.0316423]
[1771176426575,0.0004,68991.0,68980.0,0.66234976]
[1771176426750,0.63070746,68990.0,68970.0,0.6310369]
[1771176426900,0.15567594,68989.0,68970.0,0.6310369]
[1771176427093,0.15567594,68989.0,68970.0,0.6626792]
[1771176427391,0.15567594,68989.0,68971.0,0.0316423]
[1771176427598,0.15607594,68984.0,68971.0,0.0316423]
[1771176429401,0.07246798,68996.0,68971.0,0.0316423]
[1771176429402,0.0004,68999.0,68975.0,0.04026024]
[1771176429633,0.0004,69006.0,68990.0,0.0316423]
[1771176431526,0.0004,69006.0,68991.0,0.0316423]
[1771176432774,0.00028556,69002.0,68991.0,0.0316423]
[1771176435166,0.00068556,69002.0,68991.0,0.0316423]
[1771176437188,0.0004,69006.0,68991.0,0.0316423]
[1771176437360,0.00083128,69006.0,68995.0,0.03218735]
[1771176438034,0.15567594,69005.0,68990.0,0.63130616]
[1771176438181,0.15567594,69005.0,68990.0,0.66349351]
[1771176438413,0.15567594,69005.0,68987.0,0.3472]
[1771176438414,0.18509953,69005.0,68987.0,0.3472]
[1771176438607,0.15567594,69003.0,68987.0,0.3472]
[1771176439173,0.15567594,69003.0,68990.0,0.63130616]
[1771176442313,0.15567594,69003.0,68989.0,0.03218735]